Cogmind - Beta 17.1 @@@ ROGUE MODE // 2026.09.09 @ 01:58:08 Player: Somberlain Result: Destroyed by G-67 Veteran with Plasma Rifle Performance ------------- Evolutions (6) 3000 Regions Visited (9) 1800 Robots Destroyed (52) 260 Value Destroyed (2009) 2009 Prototype IDs (13) 260 Alien Tech Used (2) 400 Bonus (885) 885 TOTAL SCORE: 8614 Bonus ------- Follower Combat Kills 85 Registered with UFD 300 Met Optimus in HQ 500 Cogmind --------- Core Integrity 0/1150 Matter 238/300 Energy 14/100 System Corruption 7% Temperature Cool (12) Movement Core (150) Ox2 Location -4/Factory Parts ------- > --- POWER (3) -------- (None) > --- PROPULSION (4) --- (None) > --- UTILITY (11) ----- Advanced Heat Sink Advanced Heat Sink Advanced Heat Sink Enhanced Optical Array Improved Signal Interpreter Core Analyzer > --- WEAPON (2) ------- High-powered Shock Rifle > --- INVENTORY (5) ---- Advanced ECM Suite Point Defense System Authchip [Processor] Authchip [Weapon] Remote Datajack Peak State ------------ > --- POWER ------------ Light Angular Momentum Engine Fission Core Neutrino Core > --- PROPULSION ------- Flexi-carbon Leg Armored Leg Armored Leg > --- UTILITY ---------- Improved Cooling System Advanced Cooling System Coolant Injector Large Storage Unit Enhanced Optical Array Advanced Sensor Array Improved Signal Interpreter Core Analyzer Layered Medium Armor Plating Hacking Suite > --- WEAPON ----------- Variable Charge Gun Heavy Plasma Cannon > --- INVENTORY -------- Improved Kinecellerator Advanced ECM Suite Point Defense System Authchip [Device] Authchip [Processor] Authchip [Weapon] Long-range Proton Cannon Disruptor Cannon Disruptor Cannon Heavy Machine Gun Remote Datajack CPS Tube Heavy Mace [Rating: 88] Favorites ----------- Power Neutrino Core Engine Light Angular Momentum Engine Power Core Neutrino Core Reactor Light Antimatter Reactor Propulsion Armored Leg Treads Medium Treads Leg Armored Leg Wheel Subdweller Monowheel Utility Hacking Suite Device Advanced Sensor Array Storage Large Storage Unit Processor Core Analyzer Hackware Hacking Suite Protection Layered Medium Armor Plating Weapon Medium Laser Energy Gun Medium Laser Energy Cannon Disruptor Cannon Ballistic Gun Gauss Rifle Ballistic Cannon Light Cannon Launcher Grenade Launcher Special Weapon Remote Datajack Impact Weapon Heavy Mace Slashing Weapon Greatsword Special Melee Weapon Improved Datajack Build | -11 -10 -10 -10 -7 -7 -5 -5 -5 -4 ------- Run | Yrd Mat Min Sub Rec Scr Fac Upp Upp Fac Slots Evolved 12 | . . . . . . 10 . . 2 Power 1 | . . . . . . 1 . . . Propulsion 2 | . . . . . . 2 . . . Utility 9 | . . . . . . 7 . . 2 Weapon . | . . . . . . . . . . Parts Attached 99 | 6 8 . 3 9 10 17 24 3 19 Power 13 | 1 1 . 1 1 . 1 3 2 3 Engine 3 | 1 . . 1 . . . . 1 . Core 8 | . 1 . . 1 . 1 3 1 1 Reactor 2 | . . . . . . . . . 2 Propulsion 17 | 2 2 . . 2 3 . 3 1 4 Treads 1 | . . . . . . . 1 . . Leg 15 | 2 2 . . 2 2 . 2 1 4 Wheel 1 | . . . . . 1 . . . . Hover . | . . . . . . . . . . Flight . | . . . . . . . . . . Utility 31 | 1 2 . . 1 1 11 10 . 5 Device 19 | . 1 . . . . 5 8 . 5 Storage 2 | 1 . . . . 1 . . . . Processor 5 | . 1 . . . . 3 1 . . Hackware 4 | . . . . 1 . 3 . . . Protection 1 | . . . . . . . 1 . . Artifact . | . . . . . . . . . . Weapon 38 | 2 3 . 2 5 6 5 8 . 7 Energy Gun 12 | 2 . . 1 1 3 . 1 . 4 Energy Cannon 7 | . . . . . 1 2 4 . . Ballistic Gun 7 | . . . . 3 . 2 1 . 1 Ballistic Cannon 3 | . 1 . . . . . . . 2 Launcher 1 | . 1 . . . . . . . . Special Weapon 5 | . 1 . 1 . 2 . 1 . . Impact Weapon 1 | . . . . . . 1 . . . Slashing Weapon 1 | . . . . . . . 1 . . Piercing Weapon . | . . . . . . . . . . Special Melee Weapon 1 | . . . . 1 . . . . . Unidentified Prototypes 2 | . . . . . . . 1 1 . Corrupted Parts 2 | . . . . . . . 1 . 1 System Corruption 3 | . . . . . . . 1 . 2 Parts Lost 56 | . 2 . 4 2 . 1 14 2 31 Power 11 | . 1 . 1 . . . 1 2 6 Propulsion 12 | . 1 . 1 . . . 3 . 7 Utility 17 | . . . . . . 1 7 . 9 Weapon 16 | . . . 2 2 . . 3 . 9 Highest Loss Streak 23 | . 1 . 2 1 . 1 7 2 23 To Critical Strikes 1 | . . . . . . . 1 . . Average Backups 10 | . 3 7 7 7 11 14 13 13 8 Power . | . . 1 . . . . 1 . . Propulsion . | . . 1 1 1 . . . . . Utility 4 | . . 1 1 3 6 6 5 6 5 Weapon 3 | . 1 4 3 1 2 6 4 5 2 Tool/Special . | . . . . . . . . . . Unused Backups 14 | . 1 . . . 7 2 . . 4 Power 2 | . 1 . . . 1 . . . . Propulsion . | . . . . . . . . . . Utility 6 | . . . . . 1 1 . . 4 Weapon 4 | . . . . . 3 1 . . . Tool/Special 2 | . . . . . 2 . . . . Average Slot Usage (%) 87 | . 93 100 80 98 99 86 79 92 65 Core 10 | . 10 14 2 13 14 5 10 12 4 Leg 17 | . 26 28 18 28 27 17 7 14 11 Device 8 | . 11 . . . . 12 14 15 15 Storage 9 | . 14 14 14 14 14 5 5 5 3 Processor 10 | . . 14 14 6 . 12 16 16 15 Hackware 8 | . . . . 7 14 18 9 5 2 Energy Gun 10 | . 26 14 17 3 22 3 2 5 3 Energy Cannon 2 | . . . . . . 3 5 5 3 Ballistic Gun 1 | . . . . 13 . 1 1 . . Ballistic Cannon 2 | . . 14 8 8 . . . . . Special Weapon 1 | . . . . . 5 . . . . Peak Build Rating 88 | 6 11 10 10 23 29 69 82 84 88 Average Rating 43 | 4 9 9 6 18 26 61 67 82 65 On Entrance 31 | . 6 9 9 7 23 29 66 81 84 Avg Prop Armor Cover (%) 5 | . . . . . 5 . . . . Naked Turns . | . . . . . . . . . . Heaviest Build 90 | 14 15 15 15 19 34 47 90 89 82 Greatest Support 65 | 20 20 20 20 30 38 58 40 52 65 Greatest Overweight (x) 12 | . 1 . . . . . 12 2 8 Average Overweight (x) . | . . . . . . . 1 1 . Largest Inventory Capacity 15 | 8 8 8 8 8 15 15 15 15 15 Average Capacity 12 | 7 8 8 8 8 11 15 15 15 11 Most Carried 15 | . 7 8 8 8 15 15 15 15 14 Average Carried 10 | . 3 7 7 7 11 14 13 13 8 Final Capacity 15 | 8 8 8 8 8 15 15 15 15 5 Final Carried 15 | . 7 7 5 8 15 15 15 14 5 Class Distribution -------------------- 39% | Mutant 29% | Derelict-Skirmisher 14% | Hacker-Mutant 8% | Scavenger-Mutant 5% | Commander-Mutant Dominant Class ---------------- Mutant | -10/Materials Mutant | -10/Mines Mutant | -10/Subcaves Commander-Mutant | -7/Recycling Mutant | -7/Scraptown Hacker-Mutant | -5/Factory Derelict-Skirmisher | -5/Upper Caves Derelict-Skirmisher | -5/Upper Caves Scavenger-Mutant | -4/Factory Resources | -11 -10 -10 -10 -7 -7 -5 -5 -5 -4 ----------- Run | Yrd Mat Min Sub Rec Scr Fac Upp Upp Fac Matter Collected 2531 | 187 188 58 191 164 208 150 1048 74 263 Remotely . | . . . . . . . . . . Salvage Created 2245 | . 401 . 265 162 . 240 713 59 405 Parts 109 | . 19 . 21 4 . 9 28 4 24 Haulers Intercepted 2 | . 2 . . . . . . . . Recyclers Shooed 5 | . 1 1 . 2 . 1 . . . Parts Field Recycled . | . . . . . . . . . . Retrieved Matter . | . . . . . . . . . . Parts Self-Destructed 31 | . . . 9 . . . 22 . . Prevented 2 | . . . . . . . 2 . . Parts Restored . | . . . . . . . . . . Kills | -11 -10 -10 -10 -7 -7 -5 -5 -5 -4 ------- Run | Yrd Mat Min Sub Rec Scr Fac Upp Upp Fac Combat Hostiles Destroyed 44 | . 7 . 10 2 . 3 12 1 9 Guns 18 | . 3 . 3 1 . 2 5 . 4 Cannons 17 | . . . 4 1 . . 7 1 4 AOE 7 | . 3 . 3 . . . . . 1 Classes Destroyed 12 | . 6 . 2 1 . 1 1 1 . Builder 1 | . . . . . . 1 . . . Hauler 2 | . 2 . . . . . . . . Recycler 2 | . 1 . . 1 . . . . . Operator 2 | . 1 . . . . 1 . . . Watcher 1 | . 1 . . . . . . . . Swarmer 14 | . 2 . 4 . . . 5 . 3 Grunt 16 | . 5 . 1 . . . 6 . 4 Sentry 4 | . . . 1 1 . 1 1 . . Hunter 1 | . . . . . . . . 1 . Programmer 5 | . . . . 1 . 2 . . 2 Subdweller 4 | . . . 4 . . . . . . Samaritan 4 | . . . . . . . 4 . . Best Kill Streak 4 | . 3 . 4 1 . 1 4 1 3 Combat Bots Only 4 | . 3 . 4 1 . 1 4 1 3 Max Kills in Single Turn 3 | . 2 . 3 1 . 1 1 1 1 Gunslinging . | . . . . . . . . . . Exploded 3 | . 2 . 3 . . . . . 1 Melee . | . . . . . . . . . . Uniques/NPCs Destroyed . | . . . . . . . . . . Combat | -11 -10 -10 -10 -7 -7 -5 -5 -5 -4 -------- Run | Yrd Mat Min Sub Rec Scr Fac Upp Upp Fac Hostile Shots Fired 711 | . 62 . 74 50 2 44 173 8 298 Missed 233 | . 13 . 35 18 . 23 54 . 90 Hits 478 | . 49 . 39 32 2 21 119 8 208 Melee 1 | . . . . . 1 . . . . Projectile 477 | . 49 . 39 32 1 21 119 8 208 AOE 2 | . . . 2 . . . . . . Critical Strikes 19 | . 1 . . 2 . 3 3 . 10 Part Disruptions 2 | . . . . . . 1 . . 1 Damage Taken 8392 | . 501 1 456 257 72 426 2139 592 3948 Core 2341 | . 104 . 69 42 . 167 629 168 1162 Absorbed by Shields 128 | . . . . . . . 128 . . Regen/Repaired (Parts) 131 | . 41 . . . 90 . . . . Core Remaining (%) 39 | 100 . . . . 14 . . 3 . Volleys Fired 313 | . 78 2 31 13 13 32 89 3 52 Largest 2 | . 2 2 2 2 1 2 2 2 2 Hottest 315 | . 100 80 100 108 5 162 315 315 315 Shots Fired 513 | . 154 4 50 21 15 57 135 5 72 Gun 347 | . 148 2 20 15 2 54 64 3 39 Cannon 133 | . . 2 26 6 . 3 62 2 32 Launcher 9 | . 5 . 4 . . . . . . Special 24 | . 1 . . . 13 . 9 . 1 Kinetic 145 | . . 2 26 17 . 34 38 . 28 Thermal 253 | . 149 2 20 4 1 . 48 5 24 Explosive 9 | . 5 . 4 . . . . . . Electromagnetic 83 | . . . . . 1 23 40 . 19 Robot Hit Streak 13 | . 7 2 11 4 3 4 13 3 11 Robot Miss Streak 5 | . 5 3 3 3 4 3 5 1 4 Penetration Max . | . . . . . . . . . . Secondary Targets . | . . . . . . . . . . Shots Hit Robots 265 | . 50 2 26 20 6 30 80 3 48 Core Hits 114 | . 22 1 16 5 . 10 34 1 25 Critical Kills . | . . . . . . . . . . Critical Parts Destroyed 2 | . . . . . . 1 1 . . Critical Strikes 12 | . 4 . 1 . . 1 2 . 4 Burn 5 | . 4 . . . . . . . 1 Destroy 2 | . . . . . . 1 1 . . Blast 3 | . . . 1 . . . . . 2 Corrupt 2 | . . . . . . . 1 . 1 Melee Attacks 24 | . . . . 8 . 10 2 . 4 Impact 16 | . . . . . . 10 2 . 4 Slashing . | . . . . . . . . . . Piercing . | . . . . . . . . . . Sneak Attacks 9 | . . . . 8 . 1 . . . Combat Hostiles . | . . . . . . . . . . Follow-up Attacks . | . . . . . . . . . . Damage Inflicted 5971 | . 832 29 508 240 3 788 1740 106 1725 Guns 3318 | . 648 13 187 175 . 670 931 42 652 Cannons 1580 | . . 16 199 65 . . 765 64 471 Explosions 1019 | . 184 . 122 . . 67 44 . 602 Melee 51 | . . . . . . 51 . . . Ramming 3 | . . . . . 3 . . . . Kinetic 1905 | . . 16 199 173 . 555 431 . 531 Thermal 2706 | . 648 13 187 67 . . 897 106 788 Explosive 568 | . 184 . 122 . . . . . 262 Electromagnetic 738 | . . . . . . 182 412 . 144 Impact 51 | . . . . . . 51 . . . Slashing . | . . . . . . . . . . Piercing . | . . . . . . . . . . Highest Corruption 7 | . . . . 1 1 3 4 4 7 Average Corruption 2 | . . . . 1 1 2 3 4 4 Corruption Purged . | . . . . . . . . . . Corruption Blocked 6 | . . . . . . . 6 . . Effects 152 | . . . . 5 19 3 95 23 7 Message Errors 30 | . . . . 1 5 1 16 5 2 Matter Fused 51 | . . . . 2 3 1 38 6 1 Heat Flow Errors 19 | . . . . 1 1 . 12 4 1 Energy Discharges 17 | . . . . 1 5 . 3 5 3 Parts Rejected 1 | . . . . . . . 1 . . Data Loss (minor) 19 | . . . . . 2 . 16 1 . Data Loss (major) 6 | . . . . . 1 1 3 1 . Misfires 5 | . . . . . 2 . 3 . . Alerts 4 | . . . . . . . 3 1 . Overload Shots 13 | . . . . . . . 6 3 4 Effects 1 | . . . . . . . . 1 . Energy Bleed 1 | . . . . . . . . 1 . Overflow Damage 89 | . . . . 3 . 11 29 . 46 Projectiles 39 | . . . . 3 . . 29 . 7 Explosions 39 | . . . . . . . . . 39 Melee 11 | . . . . . . 11 . . . Knockbacks 6 | . . 1 . . . 1 . . 4 Impact 1 | . . . . . . 1 . . . Kinetic 4 | . . 1 . . . . . . 3 Secondary 1 | . . . . . . . . . 1 Self-Inflicted Damage 160 | . . . 19 . . . . . 141 Shots 3 | . . . 1 . . . . . 2 Rammed . | . . . . . . . . . . Targets Rammed 1 | . . . . . 1 . . . . Kicked 1 | . . . . . 1 . . . . Crushed . | . . . . . . . . . . Highest Temperature 420 | . 212 48 . 231 163 . 420 189 190 Average Temperature 61 | . 27 27 . 74 62 . 103 91 115 Received Heat Transfer 1474 | . 189 . 129 54 12 18 289 . 783 Effects 2 | . . . . . . . 2 . . Shutdowns 1 | . . . . . . . 1 . . Matter Decay 1 | . . . . . . . 1 . . Siege Activations . | . . . . . . . . . . Martial Activations . | . . . . . . . . . . Shielding Activations . | . . . . . . . . . . Robots Disrupted 2 | . . . . . . . 1 . 1 Combat Hostiles 2 | . . . . . . . 1 . 1 Robots Corrupted 2 | . . . . . . 2 . . . Combat Hostiles 1 | . . . . . . 1 . . . Parts Fried 13 | . . . . . . 8 5 . . Impact Corruptions 1 | . . . . . . 1 . . . Robots Melted 1 | . 1 . . . . . . . . Combat Hostiles 1 | . 1 . . . . . . . . Parts Melted 10 | . 4 . 1 1 . . 2 1 1 Heat Transferred 5376 | . 2220 37 555 150 . . 1257 150 1007 Parts Sabotaged . | . . . . . . . . . . Parts Stolen . | . . . . . . . . . . Parts Stripped . | . . . . . . . . . . Power Chain Reactions 2 | . . . . . . 1 1 . . Alert | -11 -10 -10 -10 -7 -7 -5 -5 -5 -4 ------- Run | Yrd Mat Min Sub Rec Scr Fac Upp Upp Fac Maximum Alert Level . | . . . . . . . . . . Low Security (%) 100 | 100 100 100 . 100 . 100 . . 100 Level 1 . | . . . . . . . . . . Level 2 . | . . . . . . . . . . Level 3 . | . . . . . . . . . . Level 4 . | . . . . . . . . . . Level 5 . | . . . . . . . . . . High Security . | . . . . . . . . . . Max Security . | . . . . . . . . . . Peak Influence 91 | . 91 22 . 21 . 59 . . 67 Initial 14 | . . . . 14 . . . . . Average 6 | . 13 . . 1 . 7 . . 8 Influence Increases 1354 | . 252 22 180 98 . 156 282 30 334 Destroy 0b10 Robot/C 860 | . 140 20 120 60 . 60 260 20 180 Destroy 0b10 Robot/NC 40 | . 25 . . 5 . 10 . . . Destroy Leader 126 | . 36 . . . . 20 20 10 40 Allied During Kill 6 | . . 2 . 2 . . 2 . . Successful Hack 36 | . 5 . . 19 . 12 . . . Disable Machine 75 | . 15 . . . . 30 . . 30 Destroy Structure 136 | . 16 . . 12 . 24 . . 84 Lose Combat Pursuer 75 | . 15 . 60 . . . . . . Influence Decreases 1335 | . 249 25 150 128 . 137 234 97 315 Entered New Map 40 | . . 3 . 16 . . 8 13 . Time Decay 914 | . 239 2 130 76 . 127 166 64 110 Lost Part 305 | . 10 . 20 . . 10 40 20 205 Lost Ally 76 | . . 20 . 36 . . 20 . . Squads Dispatched 9 | . 1 . . . . 6 . . 2 Investigation 1 | . . . . . . 1 . . . Extermination 3 | . . . . . . 2 . . 1 Reinforcement 5 | . 1 . . . . 3 . . 1 Assault . | . . . . . . . . . . Garrison . | . . . . . . . . . . Intercept . | . . . . . . . . . . Searches Triggered . | . . . . . . . . . . Construction Impeded 1 | . . . . . . 1 . . . Haulers Reinforced . | . . . . . . . . . . Active Scanning Responses . | . . . . . . . . . . Cargo Convoy Interrupts . | . . . . . . . . . . Stealth | -11 -10 -10 -10 -7 -7 -5 -5 -5 -4 --------- Run | Yrd Mat Min Sub Rec Scr Fac Upp Upp Fac Distress Signals . | . . . . . . . . . . Communications Jammed . | . . . . . . . . . . Distress Signals . | . . . . . . . . . . Times Spotted 81 | . 15 2 15 3 4 10 15 2 15 Peak Tracking Total 8 | . 4 2 6 2 3 3 4 2 8 Tactical Retreats 4 | . 1 . 2 . . 1 . . . ECM-based Alert Blocks 3 | . . . . . . 3 . . . Traps | -11 -10 -10 -10 -7 -7 -5 -5 -5 -4 ------- Run | Yrd Mat Min Sub Rec Scr Fac Upp Upp Fac Traps Triggered 3 | . 1 . . . . 1 . . 1 Indirectly . | . . . . . . . . . . Trap Hack Attempts . | . . . . . . . . . . Triggered . | . . . . . . . . . . Disarmed . | . . . . . . . . . . Reprogrammed . | . . . . . . . . . . Reused . | . . . . . . . . . . Traps Extracted . | . . . . . . . . . . Installed 1 | . . . . . 1 . . . . Triggered . | . . . . . . . . . . Machines | -11 -10 -10 -10 -7 -7 -5 -5 -5 -4 ---------- Run | Yrd Mat Min Sub Rec Scr Fac Upp Upp Fac Machines Disabled 7 | . 2 . . . . 2 . 1 2 Max in Single Turn 1 | . 1 . . . . 1 . 1 1 Machines Repaired . | . . . . . . . . . . Machines Dismantled . | . . . . . . . . . . Machines Sabotaged . | . . . . . . . . . . Overloaded Fab Kills . | . . . . . . . . . . Hacking | -11 -10 -10 -10 -7 -7 -5 -5 -5 -4 --------- Run | Yrd Mat Min Sub Rec Scr Fac Upp Upp Fac Machines Accessed 25 | . 5 1 . 6 7 2 . 1 3 Terminals 12 | . 3 1 . 4 . 2 . . 2 Fabricators 1 | . . . . . . . . . 1 Repair Stations 1 | . 1 . . . . . . . . Recycling Units 3 | . 1 . . 2 . . . . . Scanalyzers . | . . . . . . . . . . Garrison Access . | . . . . . . . . . . Total Hacks 69 | . 9 4 . 11 32 8 . 1 4 Successful 47 | . 5 1 . 4 32 4 . 1 . Failed 22 | . 4 3 . 7 . 4 . . 4 Catastrophic 9 | . 1 1 . 3 . 1 . . 3 Database Lockouts . | . . . . . . . . . . Manual 23 | . 6 4 . 5 2 3 . . 3 Terminals 30 | . 6 4 . 9 . 8 . . 3 Fabricators 1 | . . . . . . . . . 1 Repair Stations 2 | . 2 . . . . . . . . Recycling Units 3 | . 1 . . 2 . . . . . Scanalyzers . | . . . . . . . . . . Garrison Access . | . . . . . . . . . . Terminal Hacks 44 | . 2 1 . 4 32 4 . 1 . Record 33 | . 1 . . . 31 . . 1 . Part Schematic 1 | . . . . . . 1 . . . Prototype ID Bank 1 | . 1 . . . . . . . . Branch Access Points 1 | . . 1 . . . . . . . Recycling Unit Index 1 | . . . . 1 . . . . . Recall Investigation 1 | . . . . . . 1 . . . Recall Reinforcements 2 | . . . . . . 2 . . . Hauler Manifests 1 | . . . . 1 . . . . . Registered Components 1 | . . . . 1 . . . . . Zone Layout 1 | . . . . 1 . . . . . Proto ID Catalog 1 | . . . . . 1 . . . . Fabricator Hacks . | . . . . . . . . . . Repair Station Hacks 2 | . 2 . . . . . . . . Scan Component 1 | . 1 . . . . . . . . Repair 1 | . 1 . . . . . . . . Recycling Unit Hacks 1 | . 1 . . . . . . . . Retrieve Components 1 | . 1 . . . . . . . . Scanalyzer . | . . . . . . . . . . Garrison Access Hacks . | . . . . . . . . . . Unauthorized Hacks . | . . . . . . . . . . Terminals . | . . . . . . . . . . Fabricators . | . . . . . . . . . . Repair Stations . | . . . . . . . . . . Recycling Units . | . . . . . . . . . . Scanalyzers . | . . . . . . . . . . Garrison Access . | . . . . . . . . . . Data Cores Recovered . | . . . . . . . . . . Used . | . . . . . . . . . . Hacking Detections 17 | . 5 1 . 6 . 2 . . 3 Full Trace Events . | . . . . . . . . . . Feedback Events . | . . . . . . . . . . Feedback Blocked . | . . . . . . . . . . Robot Schematics Acquired . | . . . . . . . . . . Robots Built . | . . . . . . . . . . Authchips . | . . . . . . . . . . Time . | . . . . . . . . . . Total Robot Build Rating . | . . . . . . . . . . Part Schematics Acquired 1 | . . . . . . 1 . . . Parts Built . | . . . . . . . . . . Authchips . | . . . . . . . . . . Time . | . . . . . . . . . . Total Part Build Rating . | . . . . . . . . . . Part Studies Acquired . | . . . . . . . . . . Parts Repaired 1 | . 1 . . . . . . . . Time 38 | . 38 . . . . . . . . Parts Recycled . | . . . . . . . . . . Recycled Matter . | . . . . . . . . . . Retrieved Matter . | . . . . . . . . . . Retrieved Components 8 | . 8 . . . . . . . . Parts Scanalyzed . | . . . . . . . . . . Part Schematics Acquired . | . . . . . . . . . . Parts Damaged . | . . . . . . . . . . Bothacking | -11 -10 -10 -10 -7 -7 -5 -5 -5 -4 ------------ Run | Yrd Mat Min Sub Rec Scr Fac Upp Upp Fac Used RIF Installer . | . . . . . . . . . . Robots Hacked 8 | . . . . . 6 . 2 . . Non-combat 2 | . . . . . 1 . 1 . . Combat 5 | . . . . . 5 . . . . Robot Hacks Applied 7 | . . . . . 6 . 1 . . parse_system 7 | . . . . . 6 . 1 . . Manual 1 | . . . . . . . 1 . . Relay Couplers Released . | . . . . . . . . . . Fabnet Peak Effective % . | . . . . . . . . . . Robots Rewired 7 | . . . . 6 . . 1 . . Allies Hacked . | . . . . . . . . . . Hacks Repelled . | . . . . . . . . . . Allies | -11 -10 -10 -10 -7 -7 -5 -5 -5 -4 -------- Run | Yrd Mat Min Sub Rec Scr Fac Upp Upp Fac Total Allies 9 | . . 2 . 6 . . 1 . . Largest Group 5 | . . 2 . 5 . . 1 . . Highest-Rated Group 97 | . . 45 . 97 . . 81 . . Highest-Rated Ally 81 | . . 31 . 34 . . 81 . . Initial UFD Resources 41 | . . . . . . 38 38 38 41 Total Orders . | . . . . . . . . . . Ally Attacks 16 | . . 1 . 12 . . 3 . . Total Damage 340 | . . 21 . 271 . . 48 . . Kills 3 | . . 1 . 1 . . 1 . . Allies Corrupted . | . . . . . . . . . . Allies Melted . | . . . . . . . . . . Intel | -11 -10 -10 -10 -7 -7 -5 -5 -5 -4 ------- Run | Yrd Mat Min Sub Rec Scr Fac Upp Upp Fac Active Infowar (turns) 7087 | . . . . . . 1006 4322 1078 681 Optics 7041 | . . . . . . 960 4322 1078 681 Sensors 5337 | . . . . . . 1006 3009 1078 244 ECM 17 | . . . . . . 17 . . . Robot Analysis Total . | . . . . . . . . . . Derelict Logs Recovered 4 | . . 1 . . 1 . 1 1 . Drone Launches . | . . . . . . . . . . Drone Recoveries . | . . . . . . . . . . Exploration | -11 -10 -10 -10 -7 -7 -5 -5 -5 -4 ------------- Run | Yrd Mat Min Sub Rec Scr Fac Upp Upp Fac Turns Passed 14080 | 60 1130 416 1387 1128 2868 1010 4322 1078 681 Spaces Moved 7592 | 45 630 322 1045 735 1967 577 1529 425 317 Core 101 | 3 . . . . . . 75 . 23 Treads 418 | . . . . . . . 418 . . Legs 7069 | 42 630 322 1045 735 1963 577 1036 425 294 Wheels 4 | . . . . . 4 . . . . Hover . | . . . . . . . . . . Flight . | . . . . . . . . . . Fastest Speed 50 | 50 120 120 120 120 110 126 130 190 50 Average Speed 156 | 115 125 120 120 124 124 126 259 205 136 Slowest Speed 650 | 120 190 120 120 125 130 126 650 260 450 Overloaded Moves . | . . . . . . . . . . Propulsion Burnouts . | . . . . . . . . . . Robots Hopped . | . . . . . . . . . . Potential Cave-ins . | . . . . . . . . . . Cave-ins Triggered . | . . . . . . . . . . Exploration Rate (%) 52 | 5 68 58 46 96 91 13 95 50 6 Regions Visited 9 Branch Regions 6 Pre-discovered Areas . | . . . . . . . . . . Known Exits Taken 6 | . 1 1 1 . . 1 1 1 . Unknown Exits Taken 3 | 1 . . . 1 1 . . . . Scrap Searched 20 | . . 1 3 . 10 . 5 1 . Spaces Dug 10 | . . . . . . 8 2 . . Terrain Destroyed 128 | . 45 . 17 2 . 8 17 . 39 Melee 10 | . . . . . . 8 2 . . Projectile 27 | . . . . 2 . . 15 . 10 AOE 91 | . 45 . 17 . . . . . 29 Terrain Rammed . | . . . . . . . . . . Walls Destroyed . | . . . . . . . . . . Machines Disabled . | . . . . . . . . . . Actions | -11 -10 -10 -10 -7 -7 -5 -5 -5 -4 --------- Run | Yrd Mat Min Sub Rec Scr Fac Upp Upp Fac Total 9267 | 50 810 348 1127 928 2374 782 1745 622 481 Wait 998 | . 82 23 44 67 341 129 52 188 72 Move 7584 | 44 629 321 1044 734 1967 576 1528 424 317 Hop . | . . . . . . . . . . Pick Up 70 | . 7 1 2 13 18 10 14 1 4 Fast Attach 54 | 6 6 . . 2 5 4 12 3 16 Attach 40 | . 1 . 4 3 1 7 13 2 9 Detach 7 | . 1 . . 1 1 1 3 . . Swap 55 | . 5 . 2 5 9 8 22 . 4 Drop 50 | . 1 1 . 11 18 5 10 1 3 Fire 313 | . 78 2 31 13 13 32 89 3 52 Melee 24 | . . . . 8 . 10 2 . 4 Ram . | . . . . . . . . . . Kick . | . . . . . . . . . . Crush . | . . . . . . . . . . Escape Stasis . | . . . . . . . . . . Rewire 71 | . . . . 71 . . . . . Trap 1 | . . . . . 1 . . . . Miscellaneous . | . . . . . . . . . . Route ------- -11/Scrapyard -10/Materials (discovered 4 exits: *Mat x2 / *Min / *Sub) -10/Mines (discovered 3 exits: *Mat x2 / *Sub) -10/Subcaves (discovered 2 exits: *Mat / *Rec) -7/Recycling (discovered 2 exits: *Fac / *Scr) -7/Scraptown (discovered 2 exits: *Fac x2) -5/Factory -5/Upper Caves -5/Upper Caves -4/Factory History --------- Turn | Location | Event 43 | -11/Scrapyard | Discovered new exit (range 14) 61 | -11/Scrapyard | Entered Materials 310 | -10/Materials | Build established: Mutant 412 | -10/Materials | Discovered new exit (range 10) 499 | -10/Materials | Discovered new exit (range 9) 638 | -10/Materials | Repaired Lgt. Nuclear Core 780 | -10/Materials | Discovered new exit (range 11) 836 | -10/Materials | Discovered new exit (range 10) 979 | -10/Materials | Build established: Scavenger-Mutant 1188 | -10/Materials | Identified exit to Mines 1191 | -10/Materials | Entered Mines 1271 | -10/Mines | Discovered new exit (range 8) 1283 | -10/Mines | Identified exit to Materials 1347 | -10/Mines | Discovered exit to Materials (range 15) 1465 | -10/Mines | Build established: Mutant 1555 | -10/Mines | Discovered new exit (range 4) 1558 | -10/Mines | Identified exit to Subcaves 1607 | -10/Mines | Entered Subcaves 1608 | -10/Subcaves | Approached by a straggling Scientist 2045 | -10/Subcaves | Disturbed a concealed Subdweller 2049 | -10/Subcaves | Core integrity fell below 50% 2393 | -10/Subcaves | Discovered new exit (range 9) 2402 | -10/Subcaves | Identified exit to Materials 2985 | -10/Subcaves | Discovered new exit (range 9) 2993 | -10/Subcaves | Identified exit to Recycling 2994 | -10/Subcaves | Entered Recycling 3410 | -7/Recycling | Build established: Commander-Mutant 3890 | -7/Recycling | Core integrity fell below 20% 3895 | -7/Recycling | Lost 5 allies 3932 | -7/Recycling | Discovered new exit (range 14) 4090 | -7/Recycling | Scanned before Scraplab entrance 4109 | -7/Recycling | Entered Scraplab 4119 | -7/Recycling | Discovered new exit (range 3) 4122 | -7/Recycling | Entered Scraptown 4392 | -7/Scraptown | Discovered new exit (range 13) 4469 | -7/Scraptown | Build established: Mutant 4817 | -7/Scraptown | Visited IN-MT5's Study 4827 | -7/Scraptown | Visited Cave Peace 4907 | -7/Scraptown | Visited Symbiants 4957 | -7/Scraptown | Scanned Subdweller tech in exchange for log data 4964 | -7/Scraptown | Learned Factory stockpile data 5034 | -7/Scraptown | Visited Bundlers 5112 | -7/Scraptown | Visited CR-KLE's Repair Center 5153 | -7/Scraptown | Visited Spacefarers 5177 | -7/Scraptown | Visited UFD Registry 5177 | -7/Scraptown | Registered with UFD as "Phaseninja" 5193 | -7/Scraptown | Visited TADAMA 5279 | -7/Scraptown | Visited LU-1G1's Boring Crew 5342 | -7/Scraptown | Visited Science Guys 5370 | -7/Scraptown | Warned about trapping Scraptown 5424 | -7/Scraptown | Visited Scrapoid Pod Storage 5441 | -7/Scraptown | Visited Derelict Rescue Squad 5466 | -7/Scraptown | Visited Abandonware Association 5481 | -7/Scraptown | Learned abandonware demo "MELTYB.EXE" 5481 | -7/Scraptown | Learned abandonware demo "REBOOT5.EXE" 5767 | -7/Scraptown | Visited DA-N13 Charitable Foundation 5780 | -7/Scraptown | Found DCF Scrap (30 items) 5841 | -7/Scraptown | Visited Scrap Suit Storage 5863 | -7/Scraptown | Visited Science Testing Area 6154 | -7/Scraptown | CR-KLE repaired 5 parts 6450 | -7/Scraptown | Received an X-ray algorithm 6484 | -7/Scraptown | Ran an X-ray algorithm 6523 | -7/Scraptown | Ran an X-ray algorithm 6580 | -7/Scraptown | Met Optimus 6580 | -7/Scraptown | Accepted into 0bPrime 6685 | -7/Scraptown | Discovered new exit (range 5) 6980 | -7/Scraptown | Civil war broke out across Scraptown 6990 | -7/Scraptown | Entered Factory 6990 | -5/Factory | Evolved 10 slots: Power x1, Propulsion x2, Utility x7 7147 | -5/Factory | Spotted B-75 Beast 7294 | -5/Factory | Build established: Hacker-Mutant 7625 | -5/Factory | Discovered new exit (range 16) 7983 | -5/Factory | Identified exit to Upper Caves 8000 | -5/Factory | Entered Upper Caves 8000 | -5/Upper Caves | Spotted B-75 Beast 8074 | -5/Upper Caves | Attached CPS modules to B-75 Beast 8093 | -5/Upper Caves | Lost 7 parts (2n4u1w) 8103 | -5/Upper Caves | Core integrity fell below 50% 8143 | -5/Upper Caves | Rewired B-75 Beast 8156 | -5/Upper Caves | Lost 3 parts (1p1n1w) 9112 | -5/Upper Caves | Learned location of 1 exit from Proximity Caves 9502 | -5/Upper Caves | Found DCF Scrap (16 items) 9684 | -5/Upper Caves | Lost 3 parts (2u1w) 9984 | -5/Upper Caves | Build established: Derelict-Skirmisher 10122 | -5/Upper Caves | Attracted the attention of an 0b10 checkpoint 11087 | -5/Upper Caves | Found Alien Artifact 11096 | -5/Upper Caves | Identified Core Expander 11096 | -5/Upper Caves | Installed Core Expander, added new Power slot 11699 | -5/Upper Caves | Discovered new exit (range 8) 11720 | -5/Upper Caves | Identified exit to Upper Caves 12322 | -5/Upper Caves | Entered another Upper Caves area 12391 | -5/Upper Caves | Learned 8 Factory zone layouts 12544 | -5/Upper Caves | Found Alien Artifact 12544 | -5/Upper Caves | Identified Dimensional Node Initializer 12544 | -5/Upper Caves | Initialized slip node 12621 | -5/Upper Caves | Core integrity fell below 20% 13368 | -5/Upper Caves | Discovered new exit (range 18) 13398 | -5/Upper Caves | Identified exit to Factory 13400 | -5/Upper Caves | Entered Factory 13400 | -4/Factory | Evolved 2 slots: Utility x2 13620 | -4/Factory | Attached CPS modules to G-73 Enforcer 13664 | -4/Factory | Core integrity fell below 50% 13709 | -4/Factory | Core integrity fell below 20% 13771 | -4/Factory | Lost 23 parts (4p4n7u8w) 14007 | -4/Factory | Build established: Scavenger-Mutant 14081 | -4/Factory | Destroyed by G-67 Veteran with Plasma Rifle Last Messages --------------- transfer corridor. 14042_ K-01 Serf cleans the Construction Platform. 14048_ K-01 Serf cleans the Terminal. 14069_ Nuclear Reactor explodes. 14069_ G-67 Veteran destroyed. 14069_ Tesla Rifle destroyed. 14069_ Destroyed Tesla Rifle. 14069_ Focal Shield destroyed. 14069_ Destroyed Focal Shield. 14072_ Connecting with Fabricator... 14072_ G-67 Veteran misfires. 14075_ Lgt. Antimatter Reactor destroyed. 14075_ Flexi-carbon Leg destroyed. 14076_ G-67 Veteran IFF system glitched. 14078_ Myomer Leg destroyed. 14079_ Flexi-carbon Leg destroyed. 14080_ YZG3DC NU3KK<2W9LROXO 14080_ R-10 Processor collects Flexi-carbon Leg. 14081_ K-01 Serf collects debris. Map ----- +----------------------------------------------------+ | ?????????????????????????????????????????????????? | | ?????????????????????????????????????????????????? | | ?????????????????????????????????????????????????? | | ?????????????????????????????????????????????????? | | ?????????????????????????????????????????????????? | | ?????????????????????????????????????????????????? | | ?????????????????????????????????????????????????? | | ????????????????????????????????????????###??????? | | ???????????????????????????????????????? ??????? | | ??????????????????????????????????????? ?????? | | ???????????????????????????????????????"" ""?????? | | ??????????????????????????????????# ?"""" """"?#?? | | ??????????????????????????????????# """" """" #?? | | ??????????????????????????????????# """" """" #?? | | ??????????????????????????????????# #?? | | ??????????????????????????????????# """" """" #?? | | ??????????????????????????????????# """" """" #?? | | ??????????????????????????????????# """" """" #?? | | ??????????????????????????????????# """" """" #?? | | ??????????????????????????????????# #?? | | ??????????????????????########????#######+######?? | | ??????????????????????# #???????# #???? | | ??????????????????????# """#???????# #???? | | ??????????????????????# """#???????# #???? | | ????????????????# # ""#???????# #???? | | ????????????????# @F""#???????# #???? | | ????????????????# g """#???????# ###???? | | ????????????????# g #???????# #?????? | | ????????????????# #??????# #?????? | | ????????????????# g R #??????# #?????? | | ????????????????# % ######## #?????? | | ????????????????# ! # #?????? | | ???????????###### % # #?????? | | ??????? ??? # # " #?????? | | ???# """ ?"" # # " #?????? | | ???# """ """ # # " #?????? | | ???# """ """ # # " #?????? | | ???# + """" # % " #?????? | | ???# """ """ # """" # % # #?????? | | ???# """ """ = + """" # k %; #?????? | | ???# """ """ ##### """" # = " #?????? | | ???? #???#o """" # " %" =[ ####### | | ?????? ##### """" ####+#""#[ # | | ???????? ##""" """" #??# # # = # | | ?????????? ??#"R #### ## # # | | ???????????#+#???#""" """ ""## #### # | | ???????##### ##### "" """ T"## #??# # | | ???????# #### """ ""## #??# = = # | | ???????# "### ####%#### # | | ???????# % # | +----------------------------------------------------+ Best States ------------- Heat Dissipation 112 Coolant Potential 65 Energy Generation 47 Energy Capacity 745 Matter Stores 300 Matter Capacity 300 Sight Range 22 Robot Scan Range 16 Terrain Scan Density 10 ECM Strength 2 Power Amplification 20 Base Temperature (-) 150 Corruption Block 6 Armor Coverage 225 Resistance: KI 20 Evasion (%) 55 Core Analysis 6 Recoil Reduction 1 Kinecelleration 40 Offensive Hacking 30 Defensive Hacking 14 Authchip Count 3 Item Schematics ----------------- Railgun | -5/Factory | Hacked Robot Schematics ------------------ None Fabricated ------------ Nothing Repaired ---------- Lgt. Nuclear Core | 18% | -10/Materials Studied --------- None Alien Tech Used ----------------- Core Expander Dimensional Node Initializer Achievements -------------- None Challenges ------------ None Game ------ Seed MultireflexGravitonStorage Manual? 0 Play Time 01:26:22 Cumulative 89.1 hours Start 2026.09.09 @ 00:31:43 End 2026.09.09 @ 01:58:08 Sessions 1 Manual Loads 0 Difficulty Rogue Special Mode None Game No. 110 Rogue 110 Adventurer 0 Explorer 0 Win Type - Total 0 Types 0/0/0/0/0/0/0/0/0/0 Lore% 41 Gallery% 45 Achievement% 36 Wizard Run 0 Options --------- Layout 1 ASCII 0 Keyboard 0 Movement Mouse Keybinds 0 Fullscreen 2 Font 24/Smallcaps Map View 50x35 Zoom Use 0% Tactical HUD 1 Map Filters NONE Filters NONE Steam 1 RUN: 5df0d389-e999-490f-94bc-c2543496a7a2